bitfinex-derivatives/quotes_BTCF0:USTF0_20241023
["timestamp","ask_amount","ask_price","bid_price","bid_amount"]
[1729666424639,0.2003,67056.0,67051.0,0.3608]
[1729666424847,0.059685,67055.0,67051.0,0.3608]
[1729666426050,0.02532445,67056.0,67051.0,0.3608]
[1729666426249,0.23191967,67059.0,67054.0,0.059686]
[1729666426454,0.23191967,67059.0,67051.0,0.3608]
[1729666426455,0.17223767,67059.0,67051.0,0.3608]
[1729666426950,0.059683,67057.0,67052.0,0.059687]
[1729666427158,0.28243767,67059.0,67054.0,0.059685]
[1729666427460,0.36713697,67059.0,67054.0,0.059685]
[1729666428050,0.36713697,67059.0,67055.0,0.059684]
[1729666428051,0.30745597,67059.0,67055.0,0.059684]
[1729666428458,0.13745597,67059.0,67057.0,0.059683]
[1729666429265,0.13745597,67059.0,67053.0,0.0327]
[1729666429555,0.11243767,67059.0,67058.0,0.059682]
[1729666430056,0.05967,67072.0,67058.0,0.80816]
[1729666430260,0.05967,67072.0,67071.0,0.0002]
[1729666430447,0.059664,67079.0,67075.0,0.059667]
[1729666430650,0.059864,67079.0,67075.0,0.420467]
[1729666430857,0.17,67077.0,67075.0,0.3608]
[1729666431357,0.17,67077.0,67071.0,0.0002]
[1729666431561,0.17,67073.0,67072.0,0.05967]
[1729666432157,0.17,67077.0,67072.0,0.05967]
[1729666432356,0.1702,67077.0,67076.0,0.0002]
[1729666432864,0.0002,67077.0,67076.0,0.0002]
[1729666434463,0.059865,67077.0,67076.0,0.0002]
[1729666440058,0.0002,67077.0,67076.0,0.0002]
[1729666441367,0.0002,67077.0,67076.0,0.059866]
[1729666443265,0.0002,67077.0,67076.0,0.229866]
[1729666447070,0.0002,67077.0,67076.0,0.059866]
[1729666450366,0.0002,67077.0,67076.0,0.0002]
[1729666450773,0.059865,67077.0,67076.0,0.0002]
[1729666451871,0.229865,67077.0,67076.0,0.0002]
[1729666454676,0.701,67077.0,67069.0,0.05938755]
[1729666454871,0.590472,67070.0,67052.0,0.3608]
[1729666455070,0.420477,67064.0,67052.0,0.3608]
[1729666455273,0.059683,67057.0,67044.0,0.0622]
[1729666455471,0.590483,67057.0,67044.0,0.0622]
[1729666455783,0.059685,67055.0,67044.0,0.0622]
[1729666459682,0.059688,67052.0,67042.0,0.3608]
[1729666459867,0.2716989,67052.0,67042.0,0.3608]
[1729666461481,0.229688,67052.0,67042.0,0.3608]
[1729666462576,0.229688,67052.0,67036.0,0.3608]
[1729666462880,0.0597,67038.0,67036.0,0.3608]
[1729666463083,0.17,67037.0,67036.0,0.361]
[1729666463288,0.17,67037.0,67036.0,0.0002]
[1729666463289,0.229701,67037.0,67036.0,0.0002]
[1729666464879,0.262101,67037.0,67036.0,0.0002]
[1729666465080,0.059708,67030.0,67027.0,0.0329]
[1729666465381,0.229708,67029.0,67027.0,0.0002]
[1729666465575,0.059709,67028.0,67027.0,0.0002]
[1729666468593,0.059722,67013.0,67007.0,0.032]
[1729666468883,0.059722,67013.0,67006.0,0.00223838]
[1729666468884,0.059722,67013.0,67012.0,0.361]
[1729666470288,0.229721,67015.0,67012.0,0.361]
[1729666470580,0.229721,67015.0,67014.0,0.0002]
[1729666470581,0.229921,67015.0,67014.0,0.0002]
[1729666477194,0.1702,67015.0,67014.0,0.0002]
[1729666477389,0.229921,67015.0,67014.0,0.0002]
[1729666483001,0.1702,67015.0,67014.0,0.0002]
[1729666483305,0.229921,67015.0,67014.0,0.0002]
[1729666488199,0.399921,67015.0,67014.0,0.0002]
[1729666489009,0.760721,67015.0,67014.0,0.0002]
[1729666489714,0.760721,67015.0,67012.0,0.0002]
[1729666489715,0.701,67015.0,67012.0,0.0002]
[1729666489909,0.059728,67007.0,67004.0,0.3608]
[1729666490114,0.229728,67007.0,67006.0,0.00243838]
[1729666490310,0.229728,67007.0,67006.0,0.0002]
[1729666493411,0.229728,67007.0,67006.0,0.16950295]
[1729666493820,0.25505909,67007.0,67006.0,0.0002]
[1729666494711,0.25505909,67007.0,67006.0,0.09512233]
[1729666497022,0.25505909,67007.0,67006.0,0.09517685]
[1729666499225,0.25505909,67007.0,67006.0,0.20843124]
[1729666500927,0.25505909,67007.0,67006.0,0.20823996]
[1729666501628,0.21022618,67007.0,67006.0,0.20823996]
[1729666501925,0.21022618,67007.0,67006.0,0.18461194]
[1729666504128,0.21022618,67007.0,67006.0,0.0951104]
[1729666505625,0.21022618,67007.0,67006.0,0.169701]
[1729666505814,0.21022618,67007.0,67006.0,0.0747906]
[1729666506215,0.21022618,67007.0,67006.0,0.0002]
[1729666509719,0.21022618,67007.0,67006.0,0.0747906]
[1729666510616,0.21022618,67007.0,67006.0,0.16921044]
[1729666511424,0.21022618,67007.0,67006.0,0.0002]
[1729666513929,0.21022618,67007.0,66999.0,0.08950383]
[1729666513930,0.68129818,67007.0,66999.0,0.08950383]
[1729666514231,0.760534,67000.0,66999.0,0.0002]
[1729666514421,0.760534,67000.0,66999.0,0.09474217]
[1729666514625,0.590534,67000.0,66999.0,0.09474217]
[1729666514829,0.590534,67000.0,66999.0,0.0002]
[1729666515330,0.760534,67000.0,66999.0,0.0002]
[1729666515829,0.590534,67000.0,66999.0,0.0002]
[1729666518531,0.61618007,67000.0,66999.0,0.0002]
[1729666520322,0.78618007,67000.0,66999.0,0.0002]
[1729666520522,0.61618007,67000.0,66999.0,0.04495817]
[1729666521136,0.61618007,67000.0,66990.0,0.0332]
[1729666521137,0.72644607,67000.0,66982.0,0.08950383]
[1729666521336,0.72644607,67000.0,66982.0,0.0002]
[1729666521337,0.17,66983.0,66982.0,0.0002]
[1729666522844,0.229749,66983.0,66982.0,0.0002]
[1729666523743,0.229749,66983.0,66982.0,0.05995]
[1729666524135,0.17,66983.0,66982.0,0.05995]
[1729666524739,0.19563834,66983.0,66982.0,0.152822]
[1729666526047,0.15079386,66983.0,66982.0,0.26351417]
[1729666527837,0.15079386,66983.0,66982.0,0.152822]
[1729666528133,0.15079386,66983.0,66982.0,0.05995]
[1729666528338,0.15079386,66983.0,66982.0,0.15249496]
[1729666530242,0.15079386,66983.0,66982.0,0.24192128]
[1729666530442,0.15079386,66983.0,66982.0,0.15249496]
[1729666532945,0.15079386,66983.0,66982.0,0.15252422]
[1729666533140,0.15079386,66983.0,66982.0,0.26287903]
[1729666534845,0.5308,66999.0,66982.0,0.88074632]
[1729666535044,0.00243996,66997.0,66996.0,0.059938]
[1729666535239,0.17,67008.0,66997.0,0.059737]
[1729666535440,0.17180001,67008.0,67007.0,0.059928]
[1729666535745,0.17180001,67008.0,67007.0,0.15185208]
[1729666536135,0.19745382,67008.0,67007.0,0.15185208]
[1729666536340,0.19745382,67008.0,67007.0,0.21545208]
[1729666539844,0.19745382,67008.0,67007.0,0.123528]
[1729666544151,0.19745382,67008.0,67007.0,0.092428]
[1729666544959,0.19745382,67008.0,67007.0,0.059928]
[1729666545153,0.25718082,67008.0,67007.0,0.0002]
[1729666548056,0.229737,66997.0,66996.0,0.0002]
[1729666548262,0.590537,66997.0,66996.0,0.0002]
[1729666550457,0.6151157,66997.0,66996.0,0.0002]
[1729666550968,0.9759157,66997.0,66996.0,0.0002]
[1729666551153,1.0079157,66997.0,66996.0,0.0002]
[1729666552053,1.1779157,66997.0,66996.0,0.0002]
[1729666552255,1.0079157,66997.0,66996.0,0.0002]
[1729666554263,1.1047157,66997.0,66996.0,0.0002]
[1729666555754,1.0079157,66997.0,66996.0,0.0002]
[1729666555956,1.1047157,66997.0,66996.0,0.0002]
[1729666557861,1.0079157,66997.0,66996.0,0.0002]
[1729666558066,1.1047557,66997.0,66996.0,0.0002]
[1729666561467,0.9161787,66997.0,66996.0,0.059938]
[1729666562665,0.9161787,66997.0,66996.0,0.0002]
[1729666565569,1.1459157,66997.0,66996.0,0.0002]
[1729666568378,0.9759157,66997.0,66996.0,0.0002]
[1729666568580,1.1459157,66997.0,66996.0,0.0002]
[1729666570683,0.059745,66988.0,66987.0,0.00223922]
[1729666570868,0.590545,66988.0,66987.0,0.00223922]
[1729666572081,0.6161157,66997.0,66987.0,0.00223922]
[1729666572082,0.17,66989.0,66987.0,0.09247438]
[1729666572281,0.17,66993.0,66990.0,0.059742]
[1729666572470,0.17,66993.0,66992.0,0.0002]
[1729666573175,0.3853787,66997.0,66996.0,0.059738]
[1729666573373,0.3853787,66997.0,66996.0,0.059938]
[1729666573680,0.3853787,66997.0,66996.0,0.15225238]
[1729666574576,0.3608,67003.0,66996.0,0.18196728]
[1729666574773,0.3608,67003.0,67002.0,0.059932]
[1729666574985,0.3608,67003.0,67002.0,0.1521782]
[1729666575374,0.3864568,67003.0,67002.0,0.1521782]
[1729666576484,0.3608,67003.0,67002.0,0.1521782]
[1729666577076,0.3608,67003.0,67002.0,0.059932]
[1729666578981,0.3608,67003.0,67002.0,0.229932]
[1729666579181,0.3608,67003.0,67002.0,0.677692]
[1729666579479,0.3608,67003.0,67002.0,0.507692]
[1729666581189,0.3608,67003.0,67002.0,0.11956312]
[1729666581383,0.5308,67003.0,67002.0,0.11956312]
[1729666582578,0.5308,67003.0,67002.0,0.059932]
[1729666584381,0.5308,67003.0,67002.0,0.11956312]
[1729666584582,0.590531,67003.0,67002.0,0.05983112]
[1729666584975,0.590531,67003.0,67002.0,0.0002]
[1729666588382,0.530531,67003.0,67002.0,0.0002]
[1729666591285,0.169731,67003.0,67002.0,0.0002]
[1729666599983,0.169731,67003.0,67002.0,0.16687515]
[1729666600185,0.169731,67003.0,67002.0,0.0002]
[1729666601089,0.0642,67006.0,67002.0,0.16688103]
[1729666601285,0.05973,67004.0,67003.0,0.07458683]
[1729666601594,0.05973,67004.0,67003.0,0.09203865]
[1729666603191,0.059731,67003.0,67002.0,0.0002]
[1729666603498,0.061931,67003.0,67002.0,0.0002]
[1729666604487,1.090491,67003.0,66996.0,0.07485971]
[1729666604791,0.530537,66997.0,66996.0,0.0002]
[1729666606200,0.169737,66997.0,66996.0,0.0002]
[1729666606387,0.530537,66997.0,66996.0,0.0002]
[1729666608885,0.420537,66997.0,66996.0,0.0002]
[1729666609086,0.44596142,66997.0,66996.0,0.0002]
[1729666609488,0.0022,67003.0,66996.0,0.279938]
[1729666609689,0.0022,67003.0,67002.0,0.169932]
[1729666609887,0.0022,67003.0,67002.0,0.0002]
[1729666610086,0.1122,67003.0,67002.0,0.0002]
[1729666611197,0.1368323,67003.0,67002.0,0.059932]
[1729666612593,0.1368323,67003.0,67002.0,0.0002]
[1729666612790,0.1965633,67003.0,67002.0,0.0002]
[1729666614004,0.6443233,67003.0,67002.0,0.0002]
[1729666614205,0.059737,66997.0,66996.0,0.0002]
[1729666614397,0.530537,66997.0,66996.0,0.0002]
[1729666614703,0.640537,66997.0,66996.0,0.0002]
[1729666615599,0.530537,66997.0,66996.0,0.0002]
[1729666615898,0.640537,66997.0,66996.0,0.0002]
[1729666618099,0.640537,66997.0,66988.0,0.00243913]
[1729666618307,0.420544,66989.0,66988.0,0.0002]
[1729666619201,0.485144,66989.0,66988.0,0.0002]
[1729666620396,0.655144,66989.0,66988.0,0.0002]
[1729666620598,0.825144,66989.0,66988.0,0.0002]
[1729666621604,0.655144,66989.0,66988.0,0.0002]
[1729666622509,0.825144,66989.0,66988.0,0.0002]
[1729666623707,0.655144,66989.0,66988.0,0.0002]
[1729666625512,0.68067711,66989.0,66988.0,0.0002]
[1729666626811,0.60747711,66989.0,66988.0,0.0002]
[1729666627014,0.94747711,66989.0,66988.0,0.0002]
[1729666627519,0.77747711,66989.0,66988.0,0.0002]
[1729666628218,0.61607711,66989.0,66988.0,0.0002]
[1729666628416,0.71287711,66989.0,66988.0,0.0002]
[1729666629325,0.55633311,66989.0,66988.0,0.059945]
[1729666631521,0.38633311,66989.0,66988.0,0.229945]
[1729666631817,0.17,66994.0,66993.0,0.05974]
[1729666632014,0.55596781,66997.0,66993.0,0.0002]
[1729666632214,0.55596781,66997.0,66996.0,0.059938]
[1729666635524,0.61570481,66997.0,66996.0,0.0002]
[1729666637624,0.25490481,66997.0,66996.0,0.0002]
[1729666639720,0.08490481,66997.0,66996.0,0.0002]
[1729666639921,0.25490481,66997.0,66996.0,0.0002]
[1729666640929,0.31880481,66997.0,66996.0,0.0002]
[1729666642331,0.36880481,66997.0,66996.0,0.0002]
[1729666643918,0.14880481,66997.0,66996.0,0.0002]
[1729666644118,0.36880481,66997.0,66996.0,0.0002]
[1729666644923,0.36880481,66997.0,66996.0,0.04496243]
[1729666645529,1.86880481,66997.0,66996.0,0.04496243]
[1729666647122,1.86880481,66997.0,66996.0,0.0002]
[1729666647626,1.64880481,66997.0,66996.0,0.0002]
[1729666647822,1.86880481,66997.0,66996.0,0.0002]
[1729666648226,1.75880481,66997.0,66996.0,0.04496243]
[1729666648619,1.85712481,66997.0,66996.0,0.04496243]
[1729666649425,0.19490481,66997.0,66996.0,0.04496243]
[1729666649629,0.19490481,66997.0,66996.0,0.0002]
[1729666651230,0.059749,66983.0,66977.0,0.04475062]
[1729666651430,0.059764,66967.0,66953.0,0.3608]
[1729666651630,0.3608,66963.0,66962.0,0.060168]
[1729666651822,0.3608,66963.0,66962.0,0.15377921]
[1729666652134,0.3608,66969.0,66962.0,0.4484]
[1729666652434,0.11,66968.0,66967.0,0.059763]
[1729666653224,0.059767,66963.0,66962.0,0.0004]
[1729666653535,0.738887,66963.0,66962.0,0.0004]
[1729666654130,0.628887,66963.0,66962.0,0.0004]
[1729666654432,0.688887,66963.0,66962.0,0.0004]
[1729666662540,0.518887,66963.0,66962.0,0.0004]
[1729666662741,0.420567,66963.0,66962.0,0.0004]
[1729666662945,0.688927,66963.0,66962.0,0.0004]
[1729666664747,0.590567,66963.0,66962.0,0.0004]
[1729666664943,0.688927,66963.0,66962.0,0.0004]
[1729666665934,0.590567,66963.0,66962.0,0.0004]
[1729666666142,0.420567,66963.0,66962.0,0.0004]
[1729666666434,0.590567,66963.0,66962.0,0.0004]
[1729666666638,0.420567,66963.0,66962.0,0.0004]
[1729666666835,0.518927,66963.0,66962.0,0.0004]
[1729666669742,0.966927,66963.0,66962.0,0.0004]
[1729666670037,0.518927,66963.0,66962.0,0.0004]
[1729666670952,0.420567,66963.0,66962.0,0.0004]
[1729666671138,0.520127,66963.0,66962.0,0.0004]
[1729666673838,0.420567,66963.0,66962.0,0.0004]
[1729666674036,0.520127,66963.0,66962.0,0.0004]
[1729666677547,0.690127,66963.0,66962.0,0.0004]
[1729666678540,0.590567,66963.0,66962.0,0.0004]
[1729666678744,0.690127,66963.0,66962.0,0.0004]
[1729666683846,0.420567,66963.0,66962.0,0.06012481]
[1729666684050,0.1335148,66991.0,66962.0,0.06012481]
[1729666684051,0.17,66973.0,66962.0,0.6184]
[1729666684250,0.3608,66970.0,66963.0,0.0942]
[1729666684551,0.420566,66964.0,66963.0,0.0629]
[1729666685049,0.530566,66964.0,66963.0,0.0629]
[1729666685357,0.420566,66964.0,66963.0,0.0629]
[1729666685654,0.530566,66964.0,66963.0,0.15468208]
[1729666686657,0.55788272,66964.0,66963.0,0.0629]
[1729666686961,0.55788272,66964.0,66963.0,0.15523998]
[1729666687266,0.55788272,66964.0,66963.0,0.22993323]
[1729666687450,0.3608,66964.0,66963.0,0.28970023]
[1729666687651,0.3608,66964.0,66963.0,0.21500698]
[1729666688060,0.4708,66964.0,66963.0,0.21500698]
[1729666688359,0.5308,66964.0,66963.0,0.28968858]
[1729666688754,0.17,66964.0,66963.0,0.21500698]
[1729666689161,0.02699077,66966.0,66965.0,0.059765]
[1729666689362,0.059761,66970.0,66965.0,0.15230498]
[1729666689563,0.059761,66970.0,66968.0,0.059763]
[1729666689860,0.059761,66970.0,66969.0,0.09253998]
[1729666690062,0.229761,66970.0,66969.0,0.15230198]
[1729666690261,0.17,66970.0,66969.0,0.15230198]
[1729666690447,0.0044,66975.0,66969.0,0.09253998]
[1729666690647,0.0044,66975.0,66974.0,0.13459436]
[1729666690856,0.0044,66975.0,66974.0,0.15229698]
[1729666691052,0.0044,66977.0,66976.0,0.059755]
[1729666691255,0.0088,66979.0,66978.0,0.059754]
[1729666691457,0.0088,66979.0,66978.0,0.24217931]
[1729666691657,0.0088,66979.0,66978.0,0.60061398]
[1729666692063,0.02729495,66982.0,66978.0,0.54085998]
[1729666692370,0.1744,66984.0,66983.0,0.059749]
[1729666692551,0.1744,66984.0,66983.0,0.001]
[1729666692757,0.26060849,66984.0,66983.0,0.001]
[1729666699060,0.37086049,66984.0,66976.0,0.06000189]
[1729666699369,0.760555,66977.0,66976.0,0.06000189]
[1729666699570,0.7008,66977.0,66976.0,0.06000189]
[1729666700166,0.5308,66977.0,66976.0,0.06000189]
[1729666703964,0.557822,66977.0,66976.0,0.06000189]
[1729666704179,0.557822,66977.0,66976.0,0.11975689]
[1729666704977,0.387822,66977.0,66976.0,0.11975689]
[1729666705180,0.0044,66984.0,66983.0,0.059749]
[1729666705473,0.1744,66984.0,66983.0,0.060549]
[1729666706479,0.20089973,66984.0,66983.0,0.060549]
[1729666707476,0.03089973,66984.0,66983.0,0.508429]
[1729666707680,0.20089973,66984.0,66983.0,0.060549]
[1729666711181,0.26064773,66984.0,66983.0,0.0008]
[1729666711487,0.32394773,66984.0,66983.0,0.0008]
[1729666713187,1.82394773,66984.0,66983.0,0.0008]
[1729666713488,0.32394773,66984.0,66983.0,0.0008]
[1729666713993,1.82394773,66984.0,66983.0,0.0008]
[1729666720903,2.18474773,66984.0,66983.0,0.0008]
[1729666723103,1.82394773,66984.0,66983.0,0.0008]
[1729666723304,2.18474773,66984.0,66983.0,0.0008]
[1729666724994,2.28358773,66984.0,66983.0,0.0008]
[1729666725396,2.25288773,66984.0,66983.0,0.0008]
[1729666725705,0.39169973,66984.0,66983.0,0.0008]
[1729666725910,0.66053973,66984.0,66983.0,0.0008]
[1729666726803,0.56169973,66984.0,66983.0,0.0008]
[1729666730309,0.03089973,66984.0,66983.0,0.060549]
[1729666731113,0.20089973,66984.0,66983.0,0.060549]
[1729666734517,0.14089973,66984.0,66983.0,0.060549]
[1729666736510,0.20089973,66984.0,66983.0,0.060549]
[1729666739513,0.20089973,66984.0,66983.0,0.0008]
[1729666739817,0.56169973,66984.0,66983.0,0.0008]
[1729666740609,0.62144773,66984.0,66983.0,0.0008]
[1729666744506,0.059752,66980.0,66979.0,0.00076]
[1729666744820,0.1702,66980.0,66976.0,0.060155]
[1729666745118,1.5,66979.0,66976.0,0.0004]
[1729666745511,0.229952,66980.0,66976.0,0.0004]
[1729666745814,0.229952,66980.0,66979.0,0.0006]
[1729666752911,0.059756,66975.0,66974.0,0.0002]
[1729666753107,0.059761,66970.0,66969.0,0.0002]
[1729666753313,0.399761,66970.0,66969.0,0.0002]
[1729666756521,0.279761,66970.0,66969.0,0.0002]
[1729666756719,0.279761,66970.0,66963.0,0.00223978]
[1729666756924,0.059772,66958.0,66956.0,0.0002]
[1729666757111,0.530572,66958.0,66956.0,0.0002]
[1729666763419,0.55774708,66958.0,66956.0,0.0002]
[1729666765234,0.65674708,66958.0,66956.0,0.0002]
[1729666766232,0.55774708,66958.0,66956.0,0.0002]
[1729666766533,0.65674708,66958.0,66956.0,0.0002]
[1729666766832,0.44774708,66958.0,66956.0,0.0002]
[1729666767128,0.55774708,66958.0,66956.0,0.0002]
[1729666768122,0.44774708,66958.0,66956.0,0.0002]
[1729666768324,0.55774708,66958.0,66956.0,0.0002]
[1729666772233,0.55774708,66958.0,66948.0,0.10618585]
[1729666772234,0.05978,66949.0,66948.0,0.0008]
[1729666772435,0.27978,66949.0,66948.0,0.0008]
[1729666774319,0.25675512,66949.0,66948.0,0.0008]
[1729666774526,0.42675512,66949.0,66948.0,0.0008]
[1729666780827,0.42675512,66949.0,66948.0,0.16754559]
[1729666781237,0.42675512,66949.0,66948.0,0.09315974]
[1729666784047,0.19697512,66949.0,66948.0,0.24249883]
[1729666784251,0.19697512,66949.0,66948.0,0.15293974]
[1729666784441,0.19697512,66949.0,66948.0,0.26291321]
[1729666785132,0.19697512,66949.0,66948.0,0.26289054]
[1729666785340,0.059763,66968.0,66961.0,0.059768]
[1729666785539,0.17,66969.0,66967.0,0.0004]
[1729666786049,0.059763,66968.0,66967.0,0.07504548]
[1729666786346,0.19643202,66969.0,66967.0,0.07504548]
[1729666786538,0.36643202,66969.0,66967.0,0.07504548]
[1729666786739,0.19643202,66969.0,66967.0,0.07504548]
[1729666786933,0.19643202,66969.0,66968.0,0.0004]
[1729666791052,0.36643202,66969.0,66968.0,0.0004]
[1729666791755,0.42619402,66969.0,66968.0,0.0004]
[1729666796240,0.30619402,66969.0,66968.0,0.0004]
[1729666798552,0.66699402,66969.0,66968.0,0.0004]
[1729666802058,2.16699402,66969.0,66968.0,0.0004]
[1729666803357,1.98827202,66969.0,66968.0,0.0004]
[1729666803564,0.02643202,66969.0,66968.0,0.0004]
[1729666803755,0.11,66969.0,66968.0,0.060163]
[1729666805152,0.22,66969.0,66968.0,0.0004]
[1729666805545,0.640562,66969.0,66968.0,0.0004]
[1729666805746,0.279762,66969.0,66968.0,0.0004]
[1729666805951,0.640562,66969.0,66968.0,0.0004]
[1729666806260,0.279762,66969.0,66968.0,0.0004]
[1729666807256,0.059762,66969.0,66968.0,0.0004]
[1729666807556,0.11,66969.0,66968.0,0.0004]
[1729666808361,0.279762,66969.0,66968.0,0.0004]
[1729666811258,0.22,66969.0,66968.0,0.06001856]
[1729666811969,0.11,66969.0,66968.0,0.06001856]
[1729666812265,0.11,66969.0,66968.0,0.0004]
[1729666812568,0.169762,66969.0,66968.0,0.0004]
[1729666812759,0.279762,66969.0,66968.0,0.0004]
[1729666813166,0.279762,66969.0,66968.0,0.06009817]
[1729666813361,0.11,66969.0,66968.0,0.0004]
[1729666814358,0.169762,66969.0,66968.0,0.0004]
[1729666814857,0.279762,66969.0,66968.0,0.0004]
[1729666816166,0.11,66969.0,66968.0,0.0004]
[1729666816756,0.279762,66969.0,66968.0,0.0004]
[1729666819759,0.059762,66969.0,66968.0,0.0004]
[1729666819968,0.279762,66969.0,66968.0,0.0004]
[1729666824062,0.279762,66969.0,66960.0,0.05974573]
[1729666824063,0.22,66963.0,66960.0,0.05974573]
[1729666824258,0.0656,66962.0,66959.0,0.05974573]
[1729666824468,0.0656,66962.0,66954.0,0.07464548]
[1729666824469,0.059771,66959.0,66958.0,0.05974573]
[1729666824662,0.059771,66958.0,66956.0,0.05974573]
[1729666824856,0.279772,66957.0,66956.0,0.05974573]
[1729666825053,0.169772,66957.0,66956.0,0.09214797]
[1729666825257,0.169772,66957.0,66956.0,0.09214992]
[1729666825869,0.059773,66956.0,66955.0,0.0004]
[1729666826254,0.059773,66956.0,66955.0,0.09253787]
[1729666826764,0.169773,66956.0,66955.0,0.09253787]
[1729666827469,0.169773,66956.0,66955.0,0.09262232]
[1729666827658,0.169773,66956.0,66955.0,0.0004]
[1729666828870,0.169773,66956.0,66955.0,0.09265772]
[1729666829773,0.059773,66956.0,66955.0,0.09265772]
[1729666829972,0.169773,66956.0,66955.0,0.09265772]
[1729666830167,0.02709886,66957.0,66955.0,0.09265772]
[1729666830472,0.11,66963.0,66956.0,0.71006581]
[1729666830776,0.059766,66965.0,66962.0,0.060168]
[1729666830964,0.059766,66965.0,66964.0,0.07505437]
[1729666831363,0.059766,66965.0,66964.0,0.16702385]
[1729666831564,0.11,66967.0,66964.0,0.09236948]
[1729666831774,0.0002,66968.0,66966.0,0.0004]
[1729666831967,0.279763,66967.0,66966.0,0.0004]
[1729666833664,0.279763,66967.0,66966.0,0.06013013]
[1729666834075,0.279763,66967.0,66966.0,0.0004]
[1729666834460,0.279763,66967.0,66966.0,0.06013013]
[1729666834664,0.279763,66967.0,66966.0,0.0004]
[1729666834861,0.381203,66967.0,66966.0,0.0004]
[1729666835063,0.059764,66966.0,66965.0,0.03017345]
[1729666835271,0.3608,66966.0,66956.0,0.08998795]
[1729666835471,0.3608,66966.0,66957.0,0.09219805]
[1729666835665,0.3608,66966.0,66956.0,0.0004]
[1729666835666,0.059772,66957.0,66956.0,0.0004]
[1729666835971,0.161212,66957.0,66956.0,0.0004]
[1729666836565,0.381212,66957.0,66956.0,0.0004]
[1729666839674,0.32144,66957.0,66954.0,0.0004]
[1729666839872,0.059774,66955.0,66954.0,0.0004]
[1729666843175,0.059776,66953.0,66952.0,0.0008]
[1729666843479,0.530576,66953.0,66952.0,0.0008]
[1729666844577,0.420576,66953.0,66952.0,0.0008]
[1729666844885,0.02697172,66957.0,66956.0,0.059773]
[1729666845184,0.1102,66957.0,66956.0,0.0004]
[1729666845780,0.2202,66957.0,66956.0,0.0004]
[1729666845988,0.279972,66957.0,66956.0,0.0004]
[1729666846192,0.2202,66957.0,66956.0,0.0004]
[1729666847479,0.24246769,66957.0,66956.0,0.0004]
[1729666848281,0.19246769,66957.0,66956.0,0.0004]
[1729666848674,0.25223969,66957.0,66956.0,0.0004]
[1729666852279,0.42223969,66957.0,66956.0,0.0004]
[1729666852883,0.059776,66953.0,66952.0,0.0008]
[1729666853182,0.229776,66953.0,66952.0,0.0012]
[1729666855287,0.17,66953.0,66952.0,0.0012]
[1729666855483,0.229776,66953.0,66952.0,0.0012]
[1729666860585,0.059776,66953.0,66952.0,0.0012]
[1729666862283,0.059776,66953.0,66951.0,0.0008]
[1729666862284,0.420576,66953.0,66951.0,0.0008]
[1729666862484,0.05978,66949.0,66948.0,0.0008]
[1729666862784,0.05978,66949.0,66948.0,0.001]
[1729666863600,0.1625,66949.0,66948.0,0.001]
[1729666865590,0.05978,66949.0,66948.0,0.001]
[1729666865790,0.1625,66949.0,66948.0,0.001]
[1729666866095,0.18475003,66949.0,66948.0,0.001]
[1729666868393,0.40475003,66949.0,66948.0,0.001]
[1729666871794,0.76555003,66949.0,66948.0,0.001]
[1729666871999,0.66283003,66949.0,66948.0,0.001]
[1729666872179,0.76555003,66949.0,66948.0,0.001]
[1729666872593,0.40475003,66949.0,66948.0,0.001]
[1729666872798,0.76555003,66949.0,66948.0,0.001]
[1729666877190,0.54555003,66949.0,66948.0,0.001]
[1729666877392,0.76555003,66949.0,66948.0,0.001]
[1729666878801,0.44283003,66949.0,66948.0,0.001]
[1729666878995,0.65555003,66949.0,66948.0,0.001]
[1729666879400,0.76555003,66949.0,66948.0,0.001]
[1729666879794,0.66283003,66949.0,66948.0,0.001]
[1729666879990,0.59637003,66949.0,66948.0,0.060781]
[1729666880300,0.19203003,66949.0,66948.0,0.001]
[1729666880489,0.30203003,66949.0,66948.0,0.001]
[1729666882005,0.33333003,66949.0,66948.0,0.001]
[1729666883102,0.059782,66947.0,66946.0,0.0006]
[1729666883307,0.059782,66947.0,66946.0,0.0008]
[1729666883997,1.559782,66947.0,66946.0,0.0008]
[1729666885397,1.773102,66947.0,66946.0,0.0008]
[1729666885804,1.883102,66947.0,66946.0,0.16677863]
[1729666885999,1.883102,66947.0,66946.0,0.16677928]
[1729666886314,1.883102,66947.0,66946.0,0.0008]
[1729666886811,1.883102,66947.0,66946.0,0.07548271]
[1729666887007,1.883102,66947.0,66946.0,0.0008]
[1729666887392,1.883102,66947.0,66946.0,0.16684321]
[1729666887596,1.883102,66947.0,66946.0,0.0008]
[1729666887803,1.773102,66947.0,66946.0,0.07548459]
[1729666888004,1.773102,66947.0,66946.0,0.16686469]
[1729666888506,1.773102,66947.0,66946.0,0.16690042]
[1729666888706,1.773102,66947.0,66946.0,0.0008]
[1729666889094,1.773102,66947.0,66946.0,0.07548486]
[1729666889499,1.773102,66947.0,66946.0,0.16698987]
[1729666890106,1.773102,66947.0,66946.0,0.07548486]
[1729666890405,0.273102,66947.0,66946.0,0.07548486]
[1729666891104,0.169782,66947.0,66946.0,0.0008]
[1729666891300,0.273102,66947.0,66946.0,0.0008]
[1729666891501,0.273102,66947.0,66946.0,0.16696516]
[1729666891703,0.273102,66947.0,66946.0,0.07548486]
[1729666892201,0.273102,66947.0,66946.0,0.16699471]
[1729666892393,0.02225003,66949.0,66946.0,0.45310985]
[1729666892598,0.059767,66963.0,66956.0,0.059774]
[1729666892899,0.11,66961.0,66956.0,0.26121347]
[1729666893097,0.3608,66964.0,66956.0,0.26121347]
[1729666893098,0.0006,66957.0,66956.0,0.059974]
[1729666893299,0.0006,66957.0,66956.0,0.508014]
[1729666893710,0.0002,66970.0,66956.0,1.218014]
[1729666894005,0.0002,66970.0,66969.0,0.059762]
[1729666894306,0.1102,66972.0,66971.0,0.05976]
[1729666894513,0.13289044,66972.0,66971.0,0.05976]